[Event "January 2 Early 2024"]
[Site "https://www.chess.com"]
[Date "2024.01.02"]
[Round "8"]
[White "Panchenko, Dmitry"]
[Black "Micic, Aleksa"]
[Result "0-1"]
[Board "109"]
[TimeControl "180+1"]
[WhiteFideId "4169158"]
[BlackFideId "989940"]
[WhiteElo "2834"]
[BlackElo "2431"]
[WhiteTeam "RUS"]
[BlackTeam "SRB"]
[WhiteClock "0:00:00"]
[BlackClock "0:00:42"]

1. e4 {[%clk 0:02:31]}  c5 {[%clk 0:02:57]} 2. Nf3 {[%clk 0:02:30]}  d6 {[%clk 0:02:57]} 3. d4 {[%clk 0:02:30]}  cxd4 {[%clk 0:02:58]} 4. Nxd4 {[%clk 0:02:31]}  Nf6 {[%clk 0:02:59]} 5. Nc3 {[%clk 0:02:28]}  g6 {[%clk 0:02:59]} 6. Be3 {[%clk 0:02:27]}  Bg7 {[%clk 0:02:59]} 7. f3 {[%clk 0:02:27]}  O-O {[%clk 0:03:00]} 8. Qd2 {[%clk 0:02:27]}  Nc6 {[%clk 0:03:01]} 9. O-O-O {[%clk 0:02:28]}  Bd7 {[%clk 0:03:01]} 10. g4 {[%clk 0:02:03]}  Rc8 {[%clk 0:02:58]} 11. Kb1 {[%clk 0:02:03]}  Ne5 {[%clk 0:02:58]} 12. Be2 {[%clk 0:02:03]}  Qa5 {[%clk 0:02:55]} 13. Nb3 {[%clk 0:02:02]}  Qc7 {[%clk 0:02:54]} 14. h4 {[%clk 0:01:58]}  b5 {[%clk 0:02:54]} 15. h5 {[%clk 0:01:52]}  b4 {[%clk 0:02:53]} 16. Nd5 {[%clk 0:01:52]}  Nxd5 {[%clk 0:02:52]} 17. exd5 {[%clk 0:01:52]}  a5 {[%clk 0:02:53]} 18. hxg6 {[%clk 0:01:50]}  fxg6 {[%clk 0:02:47]} 19. Nd4 {[%clk 0:01:48]}  Nc4 {[%clk 0:02:36]} 20. Bxc4 {[%clk 0:01:47]}  Qxc4 {[%clk 0:02:37]} 21. Qh2 {[%clk 0:01:46]}  h6 {[%clk 0:02:21]} 22. Bxh6 {[%clk 0:01:41]}  Bxd4 {[%clk 0:02:05]} 23. Bxf8 {[%clk 0:01:39]}  Kxf8 {[%clk 0:02:00]} 24. Qf4+ {[%clk 0:01:19]}  Bf6 {[%clk 0:01:51]} 25. Rh8+ {[%clk 0:01:18]}  Kf7 {[%clk 0:01:50]} 26. Qxc4 {[%clk 0:01:06]}  Rxc4 {[%clk 0:01:49]} 27. Ra8 {[%clk 0:01:04]}  a4 {[%clk 0:01:47]} 28. b3 {[%clk 0:01:03]}  axb3 {[%clk 0:01:46]} 29. axb3 {[%clk 0:01:04]}  Rf4 {[%clk 0:01:40]} 30. Rg1 {[%clk 0:01:03]}  g5 {[%clk 0:01:34]} 31. Rd8 {[%clk 0:01:02]}  Bb5 {[%clk 0:01:27]} 32. Re1 {[%clk 0:00:57]}  Rxf3 {[%clk 0:01:25]} 33. Kc1 {[%clk 0:00:56]}  Rf4 {[%clk 0:01:22]} 34. Rh1 {[%clk 0:00:56]}  Rxg4 {[%clk 0:01:21]} 35. Rd1 {[%clk 0:00:54]}  Rf4 {[%clk 0:01:14]} 36. Rg1 {[%clk 0:00:52]}  Rd4 {[%clk 0:01:12]} 37. Rd1 {[%clk 0:00:49]}  Rf4 {[%clk 0:01:07]} 38. Rg1 {[%clk 0:00:48]}  Kg6 {[%clk 0:01:04]} 39. Rg8+ {[%clk 0:00:48]}  Kf5 {[%clk 0:01:04]} 40. Re1 {[%clk 0:00:47]}  g4 {[%clk 0:01:02]} 41. Rb8 {[%clk 0:00:45]}  Bf1 {[%clk 0:00:57]} 42. Re3 {[%clk 0:00:44]}  Re4 {[%clk 0:00:50]} 43. Rxe4 {[%clk 0:00:44]}  Kxe4 {[%clk 0:00:50]} 44. Kd1 {[%clk 0:00:43]}  Kf3 {[%clk 0:00:45]} 45. Rf8 {[%clk 0:00:42]}  g3 {[%clk 0:00:43]} 46. Ke1 {[%clk 0:00:42]}  g2 {[%clk 0:00:43]} 47. Rg8 {[%clk 0:00:42]}  Bc3+ {[%clk 0:00:42]} 48. Kd1 {[%clk 0:00:42]}  Be2+ {[%clk 0:00:42]} 49. Kc1 {[%clk 0:00:00]}  Kf2 {[%clk 0:00:42]} 0-1

[Event "January 2 Early 2024"]
[Site "https://www.chess.com"]
[Date "2024.01.02"]
[Round "8"]
[White "Hajiyev, Kanan"]
[Black "Nemec, Jachym"]
[Result "1-0"]
[Board "112"]
[TimeControl "180+1"]
[WhiteFideId "13404148"]
[BlackFideId "23716525"]
[WhiteElo "2611"]
[BlackElo "2423"]
[WhiteTeam "AZE"]
[BlackTeam "CZE"]
[WhiteClock "0:00:13"]
[BlackClock "0:00:00"]

1. d4 {[%clk 0:02:49]}  d5 {[%clk 0:02:59]} 2. Nf3 {[%clk 0:02:50]}  Nf6 {[%clk 0:02:59]} 3. c4 {[%clk 0:02:51]}  e6 {[%clk 0:02:59]} 4. cxd5 {[%clk 0:02:52]}  exd5 {[%clk 0:02:59]} 5. Nc3 {[%clk 0:02:53]}  c6 {[%clk 0:02:59]} 6. Qc2 {[%clk 0:02:53]}  g6 {[%clk 0:02:57]} 7. Bg5 {[%clk 0:02:53]}  Be7 {[%clk 0:02:54]} 8. e3 {[%clk 0:02:52]}  Bf5 {[%clk 0:02:54]} 9. Bd3 {[%clk 0:02:53]}  Bxd3 {[%clk 0:02:53]} 10. Qxd3 {[%clk 0:02:54]}  Nbd7 {[%clk 0:02:53]} 11. Bh6 {[%clk 0:02:52]}  Bf8 {[%clk 0:02:52]} 12. Bxf8 {[%clk 0:02:53]}  Kxf8 {[%clk 0:02:52]} 13. O-O {[%clk 0:02:53]}  Kg7 {[%clk 0:02:52]} 14. Rab1 {[%clk 0:02:54]}  a5 {[%clk 0:02:47]} 15. h3 {[%clk 0:02:51]}  Qe7 {[%clk 0:02:45]} 16. Rfe1 {[%clk 0:02:51]}  Rhe8 {[%clk 0:02:44]} 17. Qc2 {[%clk 0:02:51]}  h5 {[%clk 0:02:42]} 18. Ng5 {[%clk 0:02:48]}  Nb6 {[%clk 0:02:36]} 19. b3 {[%clk 0:02:45]}  Kh6 {[%clk 0:02:17]} 20. f4 {[%clk 0:02:40]}  Kg7 {[%clk 0:02:13]} 21. Qf2 {[%clk 0:02:34]}  Nc8 {[%clk 0:02:12]} 22. e4 {[%clk 0:02:26]}  dxe4 {[%clk 0:02:04]} 23. Ncxe4 {[%clk 0:02:27]}  Nd6 {[%clk 0:01:58]} 24. Nc5 {[%clk 0:02:18]}  Qc7 {[%clk 0:01:51]} 25. Re5 {[%clk 0:02:19]}  Nd7 {[%clk 0:01:48]} 26. Rbe1 {[%clk 0:02:13]}  Nxe5 {[%clk 0:01:44]} 27. fxe5 {[%clk 0:02:11]}  Nf5 {[%clk 0:01:40]} 28. g4 {[%clk 0:02:11]}  hxg4 {[%clk 0:01:40]} 29. hxg4 {[%clk 0:02:12]}  Qd8 {[%clk 0:01:38]} 30. Nf3 {[%clk 0:01:30]}  Nh6 {[%clk 0:01:35]} 31. g5 {[%clk 0:01:25]}  Nf5 {[%clk 0:01:34]} 32. Nxb7 {[%clk 0:01:25]}  Qe7 {[%clk 0:01:31]} 33. Nc5 {[%clk 0:01:20]}  Rad8 {[%clk 0:01:31]} 34. Re4 {[%clk 0:01:19]}  Rh8 {[%clk 0:01:26]} 35. Rg4 {[%clk 0:00:59]}  a4 {[%clk 0:00:55]} 36. Nxa4 {[%clk 0:00:52]}  Rh5 {[%clk 0:00:50]} 37. Nc5 {[%clk 0:00:51]}  Rdh8 {[%clk 0:00:49]} 38. a4 {[%clk 0:00:43]}  Qa7 {[%clk 0:00:47]} 39. Kg2 {[%clk 0:00:37]}  Qa5 {[%clk 0:00:45]} 40. e6 {[%clk 0:00:33]}  Qc3 {[%clk 0:00:40]} 41. exf7 {[%clk 0:00:27]}  Ne3+ {[%clk 0:00:39]} 42. Kg3 {[%clk 0:00:19]}  Rh3+ {[%clk 0:00:37]} 43. Kf4 {[%clk 0:00:18]}  Nxg4 {[%clk 0:00:19]} 44. Kxg4 {[%clk 0:00:18]}  Qa1 {[%clk 0:00:05]} 45. Ne6+ {[%clk 0:00:15]}  Kxf7 {[%clk 0:00:00]} 46. Ne5+ {[%clk 0:00:13]} 1-0

[Event "January 2 Early 2024"]
[Site "https://www.chess.com"]
[Date "2024.01.02"]
[Round "8"]
[White "Seletsky, Grigory"]
[Black "Andrews, Todd"]
[Result "0-1"]
[Board "113"]
[TimeControl "180+1"]
[WhiteFideId "14112191"]
[BlackFideId "2012456"]
[WhiteElo "2422"]
[BlackElo "2605"]
[WhiteTeam "UKR"]
[BlackTeam "USA"]
[WhiteClock "0:00:02"]
[BlackClock "0:00:19"]

1. b3 {[%clk 0:02:32]}  d5 {[%clk 0:02:46]} 2. Bb2 {[%clk 0:02:33]}  Nc6 {[%clk 0:02:45]} 3. e3 {[%clk 0:02:26]}  a6 {[%clk 0:02:44]} 4. Nf3 {[%clk 0:02:25]}  f6 {[%clk 0:02:37]} 5. d4 {[%clk 0:02:25]}  e6 {[%clk 0:02:37]} 6. a3 {[%clk 0:02:25]}  Bd6 {[%clk 0:02:34]} 7. Nbd2 {[%clk 0:02:26]}  Nge7 {[%clk 0:02:34]} 8. c4 {[%clk 0:02:27]}  Ng6 {[%clk 0:02:31]} 9. Qc2 {[%clk 0:02:25]}  O-O {[%clk 0:02:28]} 10. Bd3 {[%clk 0:02:26]}  f5 {[%clk 0:02:26]} 11. g3 {[%clk 0:02:25]}  Bd7 {[%clk 0:02:24]} 12. h4 {[%clk 0:02:25]}  h6 {[%clk 0:02:13]} 13. b4 {[%clk 0:02:20]}  Qe8 {[%clk 0:02:00]} 14. Qb3 {[%clk 0:02:19]}  dxc4 {[%clk 0:01:56]} 15. Nxc4 {[%clk 0:02:18]}  Nce7 {[%clk 0:01:52]} 16. Nce5 {[%clk 0:02:16]}  Bxe5 {[%clk 0:01:49]} 17. Nxe5 {[%clk 0:02:05]}  Nxe5 {[%clk 0:01:49]} 18. dxe5 {[%clk 0:02:06]}  Bc6 {[%clk 0:01:33]} 19. Rg1 {[%clk 0:02:04]}  Bd5 {[%clk 0:01:31]} 20. Bc4 {[%clk 0:02:03]}  Rd8 {[%clk 0:01:25]} 21. Bxd5 {[%clk 0:02:03]}  Rxd5 {[%clk 0:01:24]} 22. Rc1 {[%clk 0:01:58]}  Qd7 {[%clk 0:01:20]} 23. Qc2 {[%clk 0:01:56]}  Nc6 {[%clk 0:01:12]} 24. Kf1 {[%clk 0:01:54]}  Rf7 {[%clk 0:01:05]} 25. Kg2 {[%clk 0:01:44]}  Nxe5 {[%clk 0:01:02]} 26. Bxe5 {[%clk 0:01:43]}  Rxe5 {[%clk 0:01:02]} 27. Rgd1 {[%clk 0:01:43]}  Rd5 {[%clk 0:01:03]} 28. Rxd5 {[%clk 0:01:39]}  Qxd5+ {[%clk 0:01:03]} 29. Kg1 {[%clk 0:01:38]}  Rd7 {[%clk 0:01:03]} 30. a4 {[%clk 0:01:34]}  c6 {[%clk 0:01:02]} 31. a5 {[%clk 0:01:33]}  Kf7 {[%clk 0:00:50]} 32. Qc3 {[%clk 0:01:27]}  Qd2 {[%clk 0:00:48]} 33. Qc4 {[%clk 0:01:26]}  Rd5 {[%clk 0:00:43]} 34. Rc2 {[%clk 0:01:25]}  Qe1+ {[%clk 0:00:41]} 35. Qf1 {[%clk 0:01:17]}  Qxb4 {[%clk 0:00:40]} 36. Rc1 {[%clk 0:01:16]}  Qxa5 {[%clk 0:00:38]} 37. Rb1 {[%clk 0:01:16]}  b5 {[%clk 0:00:38]} 38. Qc1 {[%clk 0:01:10]}  Qb6 {[%clk 0:00:37]} 39. e4 {[%clk 0:01:09]}  fxe4 {[%clk 0:00:32]} 40. Qf4+ {[%clk 0:01:09]}  Rf5 {[%clk 0:00:32]} 41. Qd2 {[%clk 0:01:09]}  Qa7 {[%clk 0:00:24]} 42. Re1 {[%clk 0:01:08]}  a5 {[%clk 0:00:21]} 43. Rxe4 {[%clk 0:01:09]}  a4 {[%clk 0:00:21]} 44. Rd4 {[%clk 0:01:06]}  Rd5 {[%clk 0:00:19]} 45. Qf4+ {[%clk 0:01:06]}  Kg8 {[%clk 0:00:18]} 46. Re4 {[%clk 0:01:05]}  e5 {[%clk 0:00:17]} 47. Rxe5 {[%clk 0:01:03]}  Rxe5 {[%clk 0:00:17]} 48. Qxe5 {[%clk 0:01:04]}  Qd7 {[%clk 0:00:17]} 49. h5 {[%clk 0:01:00]}  a3 {[%clk 0:00:17]} 50. Qb8+ {[%clk 0:00:49]}  Kh7 {[%clk 0:00:16]} 51. Qa8 {[%clk 0:00:49]}  b4 {[%clk 0:00:15]} 52. Qa5 {[%clk 0:00:48]}  Qd1+ {[%clk 0:00:14]} 53. Kh2 {[%clk 0:00:46]}  Qd5 {[%clk 0:00:13]} 54. Qxb4 {[%clk 0:00:44]}  a2 {[%clk 0:00:13]} 55. Qa4 {[%clk 0:00:40]}  Qxh5+ {[%clk 0:00:14]} 56. Kg2 {[%clk 0:00:40]}  Qd5+ {[%clk 0:00:14]} 57. Kh2 {[%clk 0:00:39]}  c5 {[%clk 0:00:15]} 58. Qa5 {[%clk 0:00:37]}  h5 {[%clk 0:00:12]} 59. Qa4 {[%clk 0:00:33]}  Qe6 {[%clk 0:00:10]} 60. Qa5 {[%clk 0:00:29]}  Qf7 {[%clk 0:00:09]} 61. Kg2 {[%clk 0:00:27]}  Qd5+ {[%clk 0:00:09]} 62. Kh2 {[%clk 0:00:23]}  h4 {[%clk 0:00:10]} 63. Qc3 {[%clk 0:00:20]}  hxg3+ {[%clk 0:00:09]} 64. fxg3 {[%clk 0:00:17]}  Qh5+ {[%clk 0:00:09]} 65. Kg2 {[%clk 0:00:15]}  Qe2+ {[%clk 0:00:10]} 66. Kh3 {[%clk 0:00:15]}  Qe6+ {[%clk 0:00:10]} 67. Kg2 {[%clk 0:00:15]}  Qe4+ {[%clk 0:00:11]} 68. Kh3 {[%clk 0:00:15]}  Qh1+ {[%clk 0:00:11]} 69. Kg4 {[%clk 0:00:15]}  Qd1+ {[%clk 0:00:11]} 70. Kh3 {[%clk 0:00:12]}  a1=Q {[%clk 0:00:11]} 71. Qe3 {[%clk 0:00:09]}  Qh1+ {[%clk 0:00:11]} 72. Kg4 {[%clk 0:00:09]}  Qd4+ {[%clk 0:00:12]} 73. Qf4 {[%clk 0:00:08]}  Qxf4+ {[%clk 0:00:11]} 74. Kxf4 {[%clk 0:00:07]}  c4 {[%clk 0:00:12]} 75. g4 {[%clk 0:00:07]}  c3 {[%clk 0:00:13]} 76. g5 {[%clk 0:00:07]}  Kg6 {[%clk 0:00:14]} 77. Kg4 {[%clk 0:00:07]}  c2 {[%clk 0:00:14]} 78. Kf4 {[%clk 0:00:07]}  Qg1 {[%clk 0:00:15]} 79. Kf3 {[%clk 0:00:07]}  Qxg5 {[%clk 0:00:16]} 80. Ke2 {[%clk 0:00:05]}  c1=Q {[%clk 0:00:16]} 81. Kf2 {[%clk 0:00:05]}  Qcf4+ {[%clk 0:00:16]} 82. Ke2 {[%clk 0:00:05]}  Qge5+ {[%clk 0:00:17]} 83. Kd3 {[%clk 0:00:04]}  Qfd4+ {[%clk 0:00:18]} 84. Kc2 {[%clk 0:00:04]}  Qec5+ {[%clk 0:00:18]} 85. Kb3 {[%clk 0:00:02]}  Qdb4+ {[%clk 0:00:19]} 0-1

[Event "January 2 Early 2024"]
[Site "https://www.chess.com"]
[Date "2024.01.02"]
[Round "8"]
[White "Mammadova, Narmin"]
[Black "Gabdushev, Ruslan"]
[Result "1-0"]
[Board "114"]
[TimeControl "180+1"]
[WhiteFideId "13403710"]
[BlackFideId "4137833"]
[WhiteElo "2600"]
[BlackElo "2421"]
[WhiteTeam "AZE"]
[BlackTeam "RUS"]
[WhiteClock "0:00:21"]
[BlackClock "0:00:00"]

1. e4 {[%clk 0:02:59]}  Nc6 {[%clk 0:02:58]} 2. d4 {[%clk 0:02:57]}  d5 {[%clk 0:02:58]} 3. e5 {[%clk 0:02:57]}  Bf5 {[%clk 0:02:57]} 4. c3 {[%clk 0:02:55]}  Qd7 {[%clk 0:02:57]} 5. Bd3 {[%clk 0:02:53]}  h5 {[%clk 0:02:56]} 6. Nf3 {[%clk 0:02:51]}  f6 {[%clk 0:02:55]} 7. O-O {[%clk 0:02:45]}  g5 {[%clk 0:02:50]} 8. exf6 {[%clk 0:02:35]}  exf6 {[%clk 0:02:50]} 9. Re1+ {[%clk 0:02:34]}  Nge7 {[%clk 0:02:48]} 10. Na3 {[%clk 0:02:27]}  O-O-O {[%clk 0:02:47]} 11. b4 {[%clk 0:02:23]}  Ng6 {[%clk 0:02:39]} 12. b5 {[%clk 0:02:18]}  Nce7 {[%clk 0:02:37]} 13. Bf1 {[%clk 0:02:16]}  g4 {[%clk 0:02:33]} 14. Nd2 {[%clk 0:02:14]}  Kb8 {[%clk 0:02:27]} 15. Nc2 {[%clk 0:02:07]}  h4 {[%clk 0:02:19]} 16. a4 {[%clk 0:02:03]}  g3 {[%clk 0:02:10]} 17. a5 {[%clk 0:01:52]}  gxf2+ {[%clk 0:01:52]} 18. Kxf2 {[%clk 0:01:53]}  h3 {[%clk 0:01:49]} 19. g3 {[%clk 0:01:51]}  Bg4 {[%clk 0:01:45]} 20. Nf3 {[%clk 0:01:44]}  Nc8 {[%clk 0:01:41]} 21. Ne3 {[%clk 0:01:36]}  f5 {[%clk 0:01:34]} 22. Bd3 {[%clk 0:01:33]}  Nd6 {[%clk 0:01:26]} 23. Kg1 {[%clk 0:01:33]}  Ne4 {[%clk 0:01:22]} 24. Nxg4 {[%clk 0:01:27]}  fxg4 {[%clk 0:01:21]} 25. Nd2 {[%clk 0:01:22]}  Nxc3 {[%clk 0:01:09]} 26. Qb3 {[%clk 0:01:15]}  Ne4 {[%clk 0:01:08]} 27. Nxe4 {[%clk 0:01:06]}  dxe4 {[%clk 0:01:07]} 28. Rxe4 {[%clk 0:01:07]}  Bg7 {[%clk 0:01:01]} 29. Be3 {[%clk 0:01:05]}  Ne7 {[%clk 0:00:57]} 30. b6 {[%clk 0:01:00]}  Nd5 {[%clk 0:00:52]} 31. bxa7+ {[%clk 0:00:55]}  Ka8 {[%clk 0:00:52]} 32. Bf2 {[%clk 0:00:50]}  Rhf8 {[%clk 0:00:50]} 33. Rb1 {[%clk 0:00:47]}  c6 {[%clk 0:00:48]} 34. a6 {[%clk 0:00:46]}  b6 {[%clk 0:00:47]} 35. Qc2 {[%clk 0:00:42]}  Kxa7 {[%clk 0:00:39]} 36. Rbe1 {[%clk 0:00:41]}  Rf7 {[%clk 0:00:34]} 37. Bc4 {[%clk 0:00:41]}  Rdf8 {[%clk 0:00:23]} 38. R1e2 {[%clk 0:00:41]}  Qd6 {[%clk 0:00:13]} 39. Rxg4 {[%clk 0:00:38]}  Nb4 {[%clk 0:00:09]} 40. Qe4 {[%clk 0:00:34]}  Bxd4 {[%clk 0:00:02]} 41. Qxd4 {[%clk 0:00:28]}  Rxf2 {[%clk 0:00:00]} 42. Rxf2 {[%clk 0:00:21]} 1-0

[Event "January 2 Early 2024"]
[Site "https://www.chess.com"]
[Date "2024.01.02"]
[Round "8"]
[White "Herman, Daniel"]
[Black "Manukian, Artak"]
[Result "1-0"]
[Board "115"]
[TimeControl "180+1"]
[WhiteFideId "30935008"]
[BlackFideId "13301373"]
[WhiteElo "2415"]
[BlackElo "2598"]
[WhiteTeam "USA"]
[BlackTeam "ARM"]
[WhiteClock "0:00:15"]
[BlackClock "0:00:00"]

1. Nf3 {[%clk 0:02:55]}  c5 {[%clk 0:02:59]} 2. c4 {[%clk 0:02:53]}  b6 {[%clk 0:02:59]} 3. Nc3 {[%clk 0:02:42]}  Bb7 {[%clk 0:02:59]} 4. e4 {[%clk 0:02:41]}  d6 {[%clk 0:02:58]} 5. d4 {[%clk 0:02:41]}  Nd7 {[%clk 0:02:56]} 6. d5 {[%clk 0:02:39]}  g6 {[%clk 0:02:54]} 7. Bd3 {[%clk 0:02:37]}  Bg7 {[%clk 0:02:55]} 8. O-O {[%clk 0:02:36]}  Ngf6 {[%clk 0:02:53]} 9. Bg5 {[%clk 0:02:33]}  h6 {[%clk 0:02:53]} 10. Bh4 {[%clk 0:02:32]}  g5 {[%clk 0:02:51]} 11. Bg3 {[%clk 0:02:32]}  Nh5 {[%clk 0:02:51]} 12. Ne1 {[%clk 0:02:15]}  Nxg3 {[%clk 0:02:49]} 13. hxg3 {[%clk 0:02:15]}  a6 {[%clk 0:02:23]} 14. Nc2 {[%clk 0:02:14]}  e5 {[%clk 0:02:19]} 15. Ne3 {[%clk 0:02:12]}  Qf6 {[%clk 0:02:17]} 16. Be2 {[%clk 0:02:09]}  Nf8 {[%clk 0:02:08]} 17. Qa4+ {[%clk 0:02:07]}  Kd8 {[%clk 0:02:05]} 18. b4 {[%clk 0:02:05]}  Kc7 {[%clk 0:01:54]} 19. bxc5 {[%clk 0:02:05]}  dxc5 {[%clk 0:01:53]} 20. d6+ {[%clk 0:02:03]}  Qxd6 {[%clk 0:01:51]} 21. Nf5 {[%clk 0:01:59]}  Qf6 {[%clk 0:01:38]} 22. Rad1 {[%clk 0:01:40]}  Bc6 {[%clk 0:01:20]} 23. Nd5+ {[%clk 0:01:30]}  Kb7 {[%clk 0:01:21]} 24. Nxf6 {[%clk 0:01:24]}  Bxa4 {[%clk 0:01:17]} 25. Nxg7 {[%clk 0:01:24]}  Bxd1 {[%clk 0:01:16]} 26. Rxd1 {[%clk 0:01:25]}  Ng6 {[%clk 0:01:05]} 27. Rd7+ {[%clk 0:01:23]}  Kc6 {[%clk 0:01:01]} 28. Nf5 {[%clk 0:01:01]}  Rad8 {[%clk 0:00:54]} 29. Rd5 {[%clk 0:00:48]}  Kc7 {[%clk 0:00:43]} 30. Bh5 {[%clk 0:00:43]}  Kb8 {[%clk 0:00:26]} 31. Bxg6 {[%clk 0:00:36]}  fxg6 {[%clk 0:00:25]} 32. Ne7 {[%clk 0:00:36]}  Rxd5 {[%clk 0:00:20]} 33. exd5 {[%clk 0:00:31]}  e4 {[%clk 0:00:15]} 34. d6 {[%clk 0:00:27]}  b5 {[%clk 0:00:15]} 35. Nxe4 {[%clk 0:00:26]}  bxc4 {[%clk 0:00:15]} 36. Nxc5 {[%clk 0:00:25]}  c3 {[%clk 0:00:15]} 37. Nc6+ {[%clk 0:00:20]}  Kc8 {[%clk 0:00:13]} 38. Nd4 {[%clk 0:00:20]}  Rd8 {[%clk 0:00:11]} 39. d7+ {[%clk 0:00:19]}  Rxd7 {[%clk 0:00:10]} 40. Nxd7 {[%clk 0:00:19]}  Kxd7 {[%clk 0:00:11]} 41. Kf1 {[%clk 0:00:19]}  Kd6 {[%clk 0:00:11]} 42. Ke2 {[%clk 0:00:20]}  Kc5 {[%clk 0:00:11]} 43. Kd3 {[%clk 0:00:20]}  Kb4 {[%clk 0:00:11]} 44. Nc2+ {[%clk 0:00:20]}  Kc5 {[%clk 0:00:10]} 45. Kxc3 {[%clk 0:00:21]}  h5 {[%clk 0:00:11]} 46. Kd3 {[%clk 0:00:20]}  h4 {[%clk 0:00:10]} 47. gxh4 {[%clk 0:00:20]}  gxh4 {[%clk 0:00:11]} 48. Ke4 {[%clk 0:00:20]}  Kc4 {[%clk 0:00:10]} 49. Kf4 {[%clk 0:00:18]}  Kc3 {[%clk 0:00:09]} 50. Ne3 {[%clk 0:00:18]}  Kb2 {[%clk 0:00:06]} 51. Kg5 {[%clk 0:00:18]}  Kxa2 {[%clk 0:00:06]} 52. Kxg6 {[%clk 0:00:19]}  Kb3 {[%clk 0:00:06]} 53. Nd5 {[%clk 0:00:17]}  a5 {[%clk 0:00:04]} 54. Nb6 {[%clk 0:00:16]}  Kb4 {[%clk 0:00:04]} 55. f4 {[%clk 0:00:16]}  Kb5 {[%clk 0:00:04]} 56. Nd5 {[%clk 0:00:16]}  Kc4 {[%clk 0:00:04]} 57. Ne3+ {[%clk 0:00:16]}  Kd3 {[%clk 0:00:04]} 58. Nd1 {[%clk 0:00:15]}  a4 {[%clk 0:00:03]} 59. Nb2+ {[%clk 0:00:15]}  Ke4 {[%clk 0:00:02]} 60. f5 {[%clk 0:00:14]}  a3 {[%clk 0:00:00]} 61. Na4 {[%clk 0:00:15]} 1-0

[Event "January 2 Early 2024"]
[Site "https://www.chess.com"]
[Date "2024.01.02"]
[Round "8"]
[White "Omariev, Maksim"]
[Black "Chitre Arush"]
[Result "0-1"]
[Board "116"]
[TimeControl "180+1"]
[WhiteFideId "4193423"]
[BlackFideId "25959026"]
[WhiteElo "2412"]
[BlackElo "2586"]
[WhiteTeam "RUS"]
[BlackTeam "IND"]
[WhiteClock "0:00:01"]
[BlackClock "0:01:05"]

1. e4 {[%clk 0:03:00]}  e5 {[%clk 0:02:54]} 2. Nf3 {[%clk 0:03:00]}  Nc6 {[%clk 0:02:53]} 3. Bb5 {[%clk 0:03:01]}  Nge7 {[%clk 0:02:48]} 4. O-O {[%clk 0:03:00]}  g6 {[%clk 0:02:47]} 5. Re1 {[%clk 0:03:00]}  Bg7 {[%clk 0:02:46]} 6. c3 {[%clk 0:03:01]}  O-O {[%clk 0:02:45]} 7. d4 {[%clk 0:03:00]}  exd4 {[%clk 0:02:46]} 8. cxd4 {[%clk 0:03:01]}  d5 {[%clk 0:02:46]} 9. e5 {[%clk 0:02:58]}  Bg4 {[%clk 0:02:44]} 10. Be3 {[%clk 0:02:56]}  f6 {[%clk 0:02:43]} 11. exf6 {[%clk 0:02:40]}  Rxf6 {[%clk 0:02:44]} 12. Nbd2 {[%clk 0:02:39]}  Qd6 {[%clk 0:02:33]} 13. Qb3 {[%clk 0:02:29]}  Raf8 {[%clk 0:02:28]} 14. Bxc6 {[%clk 0:02:08]}  bxc6 {[%clk 0:02:08]} 15. Ne5 {[%clk 0:02:05]}  Bc8 {[%clk 0:02:06]} 16. Ndf3 {[%clk 0:01:56]}  Nf5 {[%clk 0:01:54]} 17. Bg5 {[%clk 0:01:53]}  Re6 {[%clk 0:01:47]} 18. Rac1 {[%clk 0:01:53]}  Nxd4 {[%clk 0:01:43]} 19. Nxd4 {[%clk 0:01:23]}  Rxe5 {[%clk 0:01:44]} 20. Rxe5 {[%clk 0:01:17]}  Bxe5 {[%clk 0:01:25]} 21. Rxc6 {[%clk 0:00:51]}  Qd7 {[%clk 0:01:09]} 22. Rc5 {[%clk 0:00:04]}  Bxd4 {[%clk 0:01:07]} 23. Rxd5 {[%clk 0:00:05]}  Bxf2+ {[%clk 0:01:08]} 24. Kh1 {[%clk 0:00:02]}  Qe6 {[%clk 0:01:08]} 25. h4 {[%clk 0:00:01]}  Qe1+ {[%clk 0:01:07]} 26. Kh2 {[%clk 0:00:01]}  Qg1# {[%clk 0:01:05]} 0-1

[Event "January 2 Early 2024"]
[Site "https://www.chess.com"]
[Date "2024.01.02"]
[Round "8"]
[White "Avramidou, Anastasia"]
[Black "Mayaud, Raphael"]
[Result "1/2-1/2"]
[Board "117"]
[TimeControl "180+1"]
[WhiteFideId "4239873"]
[BlackFideId "627151"]
[WhiteElo "2586"]
[BlackElo "2408"]
[WhiteTeam "GRE"]
[BlackTeam "FRA"]
[WhiteClock "0:00:10"]
[BlackClock "0:00:15"]

1. Nf3 {[%clk 0:03:00]}  d5 {[%clk 0:02:59]} 2. d4 {[%clk 0:03:00]}  Nf6 {[%clk 0:02:59]} 3. c4 {[%clk 0:03:01]}  c6 {[%clk 0:02:59]} 4. Nc3 {[%clk 0:03:01]}  e6 {[%clk 0:02:59]} 5. e3 {[%clk 0:02:58]}  Nbd7 {[%clk 0:02:58]} 6. Bd3 {[%clk 0:02:58]}  dxc4 {[%clk 0:02:56]} 7. Bxc4 {[%clk 0:02:59]}  b5 {[%clk 0:02:56]} 8. Bd3 {[%clk 0:02:59]}  Bb7 {[%clk 0:02:56]} 9. O-O {[%clk 0:02:59]}  a6 {[%clk 0:02:54]} 10. Qc2 {[%clk 0:02:59]}  Rc8 {[%clk 0:02:51]} 11. a4 {[%clk 0:02:58]}  b4 {[%clk 0:02:50]} 12. Ne4 {[%clk 0:02:58]}  c5 {[%clk 0:02:48]} 13. dxc5 {[%clk 0:02:47]}  Nxc5 {[%clk 0:02:33]} 14. Nxc5 {[%clk 0:02:44]}  Bxc5 {[%clk 0:02:33]} 15. Rd1 {[%clk 0:02:32]}  Qb6 {[%clk 0:02:23]} 16. Qe2 {[%clk 0:02:29]}  O-O {[%clk 0:02:21]} 17. a5 {[%clk 0:02:18]}  Qa7 {[%clk 0:02:18]} 18. e4 {[%clk 0:02:06]}  Ng4 {[%clk 0:01:39]} 19. Rf1 {[%clk 0:02:05]}  Rfd8 {[%clk 0:01:35]} 20. Ne1 {[%clk 0:01:38]}  Ne5 {[%clk 0:01:22]} 21. Bg5 {[%clk 0:01:32]}  f6 {[%clk 0:01:20]} 22. Bf4 {[%clk 0:01:31]}  Nxd3 {[%clk 0:01:18]} 23. Nxd3 {[%clk 0:01:32]}  e5 {[%clk 0:01:02]} 24. Nxc5 {[%clk 0:01:07]}  Qxc5 {[%clk 0:00:52]} 25. Be3 {[%clk 0:01:08]}  Qc2 {[%clk 0:00:48]} 26. Qxc2 {[%clk 0:01:08]}  Rxc2 {[%clk 0:00:48]} 27. Rfd1 {[%clk 0:00:55]}  Rxd1+ {[%clk 0:00:48]} 28. Rxd1 {[%clk 0:00:56]}  Bxe4 {[%clk 0:00:47]} 29. b3 {[%clk 0:00:49]}  Rc3 {[%clk 0:00:44]} 30. Bc5 {[%clk 0:00:45]}  Rxb3 {[%clk 0:00:43]} 31. f3 {[%clk 0:00:45]}  Bc6 {[%clk 0:00:35]} 32. Rd8+ {[%clk 0:00:36]}  Kf7 {[%clk 0:00:34]} 33. Rf8+ {[%clk 0:00:31]}  Kg6 {[%clk 0:00:34]} 34. Rb8 {[%clk 0:00:21]}  Rb1+ {[%clk 0:00:33]} 35. Kf2 {[%clk 0:00:21]}  b3 {[%clk 0:00:33]} 36. Kg3 {[%clk 0:00:18]}  Bb5 {[%clk 0:00:31]} 37. h4 {[%clk 0:00:16]}  Rg1 {[%clk 0:00:25]} 38. Ba3 {[%clk 0:00:13]}  Ra1 {[%clk 0:00:24]} 39. Bb2 {[%clk 0:00:07]}  Ra2 {[%clk 0:00:24]} 40. Bc1 {[%clk 0:00:08]}  b2 {[%clk 0:00:24]} 41. Bxb2 {[%clk 0:00:08]}  Rxb2 {[%clk 0:00:25]} 42. Kh3 {[%clk 0:00:09]}  h5 {[%clk 0:00:24]} 43. Kg3 {[%clk 0:00:08]}  Ra2 {[%clk 0:00:22]} 44. Rb6 {[%clk 0:00:08]}  Rxa5 {[%clk 0:00:22]} 45. Kf2 {[%clk 0:00:09]}  Ra2+ {[%clk 0:00:22]} 46. Kg3 {[%clk 0:00:10]}  Ra3 {[%clk 0:00:22]} 47. Kf2 {[%clk 0:00:10]}  Ra2+ {[%clk 0:00:22]} 48. Kg3 {[%clk 0:00:10]}  Bf1 {[%clk 0:00:23]} 49. Rb1 {[%clk 0:00:09]}  Rxg2+ {[%clk 0:00:18]} 50. Kh3 {[%clk 0:00:09]}  Rf2+ {[%clk 0:00:16]} 51. Kg3 {[%clk 0:00:09]}  Rg2+ {[%clk 0:00:17]} 52. Kh3 {[%clk 0:00:10]}  Rg1+ {[%clk 0:00:15]} 53. Kh2 {[%clk 0:00:10]}  Rg2+ {[%clk 0:00:15]} 54. Kh3 {[%clk 0:00:10]} 1/2-1/2